[Event "Early-Titled-Tuesday-Blitz-September-05-2023"]
[Site "Chess.com"]
[Date "2023.09.05"]
[Round "2"]
[White "MatthewG-p4p"]
[Black "kikoveiga"]
[Result "1-0"]
[WhiteElo "2873"]
[BlackElo "2596"]
[TimeControl "180+1"]
[EndTime "8:18:23 PDT"]
[Termination "MatthewG-p4p won by checkmate"]

1. f4 {[%clk 0:02:38.2]} 1... g6 {[%clk 0:02:58.6]} 2. Nf3 {[%clk 0:02:38.2]}
2... Bg7 {[%clk 0:02:59.5]} 3. g3 {[%clk 0:02:39.1]} 3... c5 {[%clk 0:02:58.5]}
4. Bg2 {[%clk 0:02:38.7]} 4... Nc6 {[%clk 0:02:59.3]} 5. O-O {[%clk 0:02:38.4]}
5... Nf6 {[%clk 0:02:59.4]} 6. d3 {[%clk 0:02:39.1]} 6... d5 {[%clk 0:02:59.2]}
7. Nc3 {[%clk 0:02:38.9]} 7... d4 {[%clk 0:02:57.4]} 8. Na4 {[%clk 0:02:38.6]}
8... Qd6 {[%clk 0:02:47.8]} 9. e4 {[%clk 0:02:36.3]} 9... dxe3 {[%clk
0:02:37.6]} 10. Bxe3 {[%clk 0:02:35.7]} 10... b6 {[%clk 0:02:37.3]} 11. Nc3
{[%clk 0:02:35.1]} 11... O-O {[%clk 0:02:36.1]} 12. Kh1 {[%clk 0:02:17.5]} 12...
Bb7 {[%clk 0:02:32.8]} 13. Qd2 {[%clk 0:02:15.6]} 13... Rad8 {[%clk 0:02:32.2]}
14. Rae1 {[%clk 0:02:14.2]} 14... Nd4 {[%clk 0:02:11.5]} 15. Ne5 {[%clk
0:01:56.1]} 15... Bxg2+ {[%clk 0:02:10.6]} 16. Qxg2 {[%clk 0:01:57]} 16... e6
{[%clk 0:02:04.2]} 17. Bxd4 {[%clk 0:01:46.7]} 17... cxd4 {[%clk 0:02:01.3]} 18.
Nb5 {[%clk 0:01:47.5]} 18... Qc5 {[%clk 0:01:59.1]} 19. Nxa7 {[%clk 0:01:30.5]}
19... Nd5 {[%clk 0:01:59.1]} 20. Nac6 {[%clk 0:01:27.1]} 20... Rc8 {[%clk
0:01:56.5]} 21. b4 {[%clk 0:01:20.7]} 21... Nxb4 {[%clk 0:01:50.8]} 22. Nxb4
{[%clk 0:01:20.2]} 22... Qxb4 {[%clk 0:01:51.4]} 23. Rb1 {[%clk 0:01:19.2]}
23... Qc5 {[%clk 0:01:37.5]} 24. Nd7 {[%clk 0:01:18.3]} 24... Qxc2 {[%clk
0:01:33.1]} 25. Nxf8 {[%clk 0:01:14.2]} 25... Bxf8 {[%clk 0:01:32.6]} 26. Qxc2
{[%clk 0:01:08.7]} 26... Rxc2 {[%clk 0:01:32.4]} 27. Rxb6 {[%clk 0:01:08.7]}
27... Rxa2 {[%clk 0:01:32.5]} 28. Rc1 {[%clk 0:01:04.9]} 28... Ra7 {[%clk
0:01:20.8]} 29. Rc4 {[%clk 0:01:03.7]} 29... Rd7 {[%clk 0:01:20.8]} 30. Ra6
{[%clk 0:01:00.7]} 30... Be7 {[%clk 0:01:11.5]} 31. Kg2 {[%clk 0:00:59.3]} 31...
h5 {[%clk 0:01:11.2]} 32. Kf3 {[%clk 0:00:59.3]} 32... Kg7 {[%clk 0:01:10]} 33.
Ke4 {[%clk 0:00:57.9]} 33... Bf6 {[%clk 0:01:10.5]} 34. Rac6 {[%clk 0:00:56.2]}
34... Ra7 {[%clk 0:01:07.6]} 35. Rc7 {[%clk 0:00:56.6]} 35... Ra2 {[%clk
0:01:07.7]} 36. Rc2 {[%clk 0:00:56.9]} 36... Ra1 {[%clk 0:01:07.3]} 37. Re2
{[%clk 0:00:49.7]} 37... Rf1 {[%clk 0:01:02.6]} 38. Rd7 {[%clk 0:00:48.7]} 38...
Kg8 {[%clk 0:00:50.5]} 39. h3 {[%clk 0:00:44.2]} 39... Rg1 {[%clk 0:00:42.6]}
40. Kf3 {[%clk 0:00:41.4]} 40... Rf1+ {[%clk 0:00:42.7]} 41. Rf2 {[%clk
0:00:37.7]} 41... Rd1 {[%clk 0:00:42]} 42. Ke2 {[%clk 0:00:38.1]} 42... Rg1
{[%clk 0:00:41.4]} 43. Rf3 {[%clk 0:00:31.8]} 43... Rg2+ {[%clk 0:00:38.3]} 44.
Kd1 {[%clk 0:00:32.4]} 44... Kg7 {[%clk 0:00:28.4]} 45. Rc7 {[%clk 0:00:30.6]}
45... Kg8 {[%clk 0:00:24.1]} 46. Rc2 {[%clk 0:00:30.6]} 46... Rg1+ {[%clk
0:00:23.9]} 47. Kd2 {[%clk 0:00:28.8]} 47... Be7 {[%clk 0:00:22]} 48. Rc4 {[%clk
0:00:28.8]} 48... Rg2+ {[%clk 0:00:20.4]} 49. Kc1 {[%clk 0:00:29.5]} 49... Bf6
{[%clk 0:00:20.4]} 50. Rc2 {[%clk 0:00:28.9]} 50... Rg1+ {[%clk 0:00:20.7]} 51.
Kb2 {[%clk 0:00:29.7]} 51... Kg7 {[%clk 0:00:21]} 52. Kb3 {[%clk 0:00:30.2]}
52... e5 {[%clk 0:00:14.1]} 53. Rcf2 {[%clk 0:00:22.7]} 53... exf4 {[%clk
0:00:10.6]} 54. Rxf4 {[%clk 0:00:23.6]} 54... Be5 {[%clk 0:00:10.2]} 55. Rxf7+
{[%clk 0:00:24.5]} 55... Kh6 {[%clk 0:00:10.5]} 56. Re7 {[%clk 0:00:20.5]} 56...
Bxg3 {[%clk 0:00:10.2]} 57. Rff7 {[%clk 0:00:21.1]} 57... Kg5 {[%clk 0:00:10.6]}
58. Re4 {[%clk 0:00:20.7]} 58... h4 {[%clk 0:00:10]} 59. Rg4+ {[%clk 0:00:20.3]}
59... Kh6 {[%clk 0:00:10.7]} 60. Rxd4 {[%clk 0:00:20.2]} 60... Rh1 {[%clk
0:00:10.1]} 61. Rg4 {[%clk 0:00:20.8]} 61... Rxh3 {[%clk 0:00:09.9]} 62. Rf6
{[%clk 0:00:21.2]} 62... Rh1 {[%clk 0:00:09.4]} 63. Rfxg6+ {[%clk 0:00:21.3]}
63... Kh5 {[%clk 0:00:10.1]} 64. R4g5# {[%clk 0:00:20.9]} 1-0

[Event "Early-Titled-Tuesday-Blitz-September-05-2023"]
[Site "Chess.com"]
[Date "2023.09.05"]
[Round "2"]
[White "tk22h"]
[Black "assezde36"]
[Result "0-1"]
[WhiteElo "2421"]
[BlackElo "2770"]
[TimeControl "180+1"]
[EndTime "8:18:24 PDT"]
[Termination "assezde36 won by resignation"]

1. d4 {[%clk 0:02:58.4]} 1... Nf6 {[%clk 0:02:59.7]} 2. Nf3 {[%clk 0:02:57.7]}
2... e6 {[%clk 0:03:00]} 3. c4 {[%clk 0:02:56.6]} 3... b6 {[%clk 0:03:00.7]} 4.
g3 {[%clk 0:02:55.4]} 4... Ba6 {[%clk 0:03:00.7]} 5. Qa4 {[%clk 0:02:55.1]} 5...
Bb7 {[%clk 0:03:00]} 6. Bg2 {[%clk 0:02:55.3]} 6... c5 {[%clk 0:03:00.7]} 7. O-O
{[%clk 0:02:52.2]} 7... cxd4 {[%clk 0:02:59.8]} 8. Nxd4 {[%clk 0:02:52.5]} 8...
Bxg2 {[%clk 0:03:00.6]} 9. Kxg2 {[%clk 0:02:53.2]} 9... Qc8 {[%clk 0:03:01.2]}
10. Nc3 {[%clk 0:02:53]} 10... Bc5 {[%clk 0:02:59.1]} 11. Nc2 {[%clk 0:02:42.4]}
11... Qb7+ {[%clk 0:02:57]} 12. f3 {[%clk 0:02:39.5]} 12... O-O {[%clk
0:02:56.9]} 13. Be3 {[%clk 0:02:39.1]} 13... Nc6 {[%clk 0:02:55.5]} 14. b4
{[%clk 0:02:32.3]} 14... Nxb4 {[%clk 0:02:52.5]} 15. Bxc5 {[%clk 0:02:23.6]}
15... bxc5 {[%clk 0:02:53.4]} 16. Rab1 {[%clk 0:02:23.1]} 16... Qc7 {[%clk
0:02:38.1]} 17. Nxb4 {[%clk 0:02:20.9]} 17... cxb4 {[%clk 0:02:39]} 18. Rxb4
{[%clk 0:02:15.4]} 18... Qe5 {[%clk 0:02:35.9]} 19. Qb3 {[%clk 0:02:12]} 19...
Rab8 {[%clk 0:02:31.2]} 20. Rb5 {[%clk 0:02:12.1]} 20... Rxb5 {[%clk 0:02:30.5]}
21. cxb5 {[%clk 0:02:11.9]} 21... Rc8 {[%clk 0:02:30.8]} 22. Rc1 {[%clk
0:02:10.4]} 22... d5 {[%clk 0:02:29.8]} 23. Rc2 {[%clk 0:02:09.3]} 23... d4
{[%clk 0:02:26]} 24. Na4 {[%clk 0:02:00.8]} 24... Rxc2 {[%clk 0:02:25.9]} 25.
Qxc2 {[%clk 0:02:01]} 25... Qxb5 {[%clk 0:02:25.6]} 26. Qc8+ {[%clk 0:01:59.2]}
26... Qe8 {[%clk 0:01:48.9]} 27. Qa6 {[%clk 0:01:53.6]} 27... Qd7 {[%clk
0:01:40.6]} 28. Nc5 {[%clk 0:01:53.4]} 28... Qc7 {[%clk 0:01:38.7]} 29. Nb3
{[%clk 0:01:46.4]} 29... e5 {[%clk 0:01:38.6]} 30. Qb5 {[%clk 0:01:44]} 30... h5
{[%clk 0:01:36.2]} 31. h4 {[%clk 0:01:43.5]} 31... Qc2 {[%clk 0:01:05.6]} 32.
Qxe5 {[%clk 0:01:33.9]} 32... d3 {[%clk 0:01:06.1]} 33. Nd4 {[%clk 0:01:17.7]}
33... Qb2 {[%clk 0:00:59.5]} 34. Qe3 {[%clk 0:01:13.5]} 34... d2 {[%clk
0:00:50.3]} 35. Qd3 {[%clk 0:01:08.1]} 35... Qc1 {[%clk 0:00:24.4]} 36. Nb3
{[%clk 0:01:04.2]} 36... d1=Q {[%clk 0:00:24.8]} 37. Nxc1 {[%clk 0:01:01.1]}
37... Qxc1 {[%clk 0:00:25.7]} 38. Qd8+ {[%clk 0:00:59.4]} 38... Kh7 {[%clk
0:00:25.9]} 39. Qd3+ {[%clk 0:00:58.4]} 39... Kh6 {[%clk 0:00:20.6]} 40. Qf5
{[%clk 0:00:40.7]} 40... Qd2 {[%clk 0:00:16.6]} 41. Kf1 {[%clk 0:00:37.9]} 41...
Qd1+ {[%clk 0:00:15.7]} 42. Kf2 {[%clk 0:00:37.8]} 42... Qd5 {[%clk 0:00:16.6]}
43. Qf4+ {[%clk 0:00:35.4]} 43... Kh7 {[%clk 0:00:16.1]} 44. Qa4 {[%clk
0:00:33.8]} 44... Qc5+ {[%clk 0:00:15]} 45. Kg2 {[%clk 0:00:33]} 45... Nd5
{[%clk 0:00:15.4]} 46. Qe4+ {[%clk 0:00:32]} 46... g6 {[%clk 0:00:16]} 47. Qe8
{[%clk 0:00:28.2]} 47... Ne3+ {[%clk 0:00:15.5]} 48. Kh2 {[%clk 0:00:24.5]}
48... Kg7 {[%clk 0:00:15.5]} 49. a4 {[%clk 0:00:21.7]} 49... Nf5 {[%clk
0:00:13.7]} 50. Kg2 {[%clk 0:00:19.2]} 50... Qd6 {[%clk 0:00:12.6]} 51. f4
{[%clk 0:00:15.8]} 51... Qd5+ {[%clk 0:00:13]} 52. Kh2 {[%clk 0:00:15.7]} 52...
Qb3 {[%clk 0:00:09.6]} 53. Qe5+ {[%clk 0:00:14.5]} 53... Kh7 {[%clk 0:00:10.2]}
54. Qf6 {[%clk 0:00:12.7]} 54... Qxg3+ {[%clk 0:00:10.1]} 55. Kh1 {[%clk
0:00:13]} 55... Qh3+ {[%clk 0:00:10]} 56. Kg1 {[%clk 0:00:12.5]} 56... Qg4+
{[%clk 0:00:10.9]} 57. Kf1 {[%clk 0:00:11.3]} 57... Qxf4+ {[%clk 0:00:11.5]} 58.
Ke1 {[%clk 0:00:10.8]} 58... Qc1+ {[%clk 0:00:11.7]} 59. Kf2 {[%clk 0:00:11]}
59... Qe3+ {[%clk 0:00:10.7]} 60. Ke1 {[%clk 0:00:11]} 60... Qe7 {[%clk
0:00:10.4]} 0-1

[Event "Early-Titled-Tuesday-Blitz-September-05-2023"]
[Site "Chess.com"]
[Date "2023.09.05"]
[Round "2"]
[White "Vaibhavraut99"]
[Black "RobertoJBM"]
[Result "1/2-1/2"]
[WhiteElo "2572"]
[BlackElo "2818"]
[TimeControl "180+1"]
[EndTime "8:18:30 PDT"]
[Termination "Game drawn by repetition"]

1. d4 {[%clk 0:03:00]} 1... d5 {[%clk 0:02:56.2]} 2. Nf3 {[%clk 0:02:59.6]} 2...
Nf6 {[%clk 0:02:54.5]} 3. c3 {[%clk 0:02:57.9]} 3... Bf5 {[%clk 0:02:50.1]} 4.
Qb3 {[%clk 0:02:54.3]} 4... Qc8 {[%clk 0:02:50]} 5. Bf4 {[%clk 0:02:53.1]} 5...
e6 {[%clk 0:02:49.7]} 6. e3 {[%clk 0:02:52.9]} 6... Bd6 {[%clk 0:02:48.8]} 7.
Bg3 {[%clk 0:02:49.1]} 7... O-O {[%clk 0:02:46.5]} 8. Nbd2 {[%clk 0:02:48.2]}
8... Nbd7 {[%clk 0:02:42.5]} 9. Ne5 {[%clk 0:02:42.5]} 9... Ne4 {[%clk
0:02:35.9]} 10. Nxe4 {[%clk 0:02:38]} 10... Bxe4 {[%clk 0:02:36.8]} 11. Nxd7
{[%clk 0:02:33.7]} 11... Qxd7 {[%clk 0:02:36.5]} 12. Qd1 {[%clk 0:02:34.3]}
12... c5 {[%clk 0:02:32.8]} 13. Bd3 {[%clk 0:02:27]} 13... Bxd3 {[%clk
0:02:18.1]} 14. Qxd3 {[%clk 0:02:26.5]} 14... c4 {[%clk 0:02:16]} 15. Qc2 {[%clk
0:02:19.6]} 15... b5 {[%clk 0:02:16]} 16. e4 {[%clk 0:02:17.7]} 16... b4 {[%clk
0:02:12.7]} 17. O-O {[%clk 0:02:11.3]} 17... Bxg3 {[%clk 0:02:11.6]} 18. hxg3
{[%clk 0:02:10.6]} 18... a5 {[%clk 0:02:10.7]} 19. a3 {[%clk 0:01:57]} 19...
Rab8 {[%clk 0:02:03]} 20. axb4 {[%clk 0:01:56]} 20... axb4 {[%clk 0:02:03]} 21.
Ra5 {[%clk 0:01:50.6]} 21... b3 {[%clk 0:01:59.6]} 22. Qe2 {[%clk 0:01:46.5]}
22... Ra8 {[%clk 0:01:57.8]} 23. Rfa1 {[%clk 0:01:46.1]} 23... Rxa5 {[%clk
0:01:57.8]} 24. Rxa5 {[%clk 0:01:47]} 24... h6 {[%clk 0:01:51.5]} 25. exd5
{[%clk 0:01:34.1]} 25... exd5 {[%clk 0:01:51.5]} 26. Qf3 {[%clk 0:01:32.7]}
26... Rd8 {[%clk 0:01:50.5]} 27. Kh2 {[%clk 0:01:30.6]} 27... Qe6 {[%clk
0:01:48.6]} 28. Ra7 {[%clk 0:01:24.5]} 28... g6 {[%clk 0:01:46.2]} 29. Qf4
{[%clk 0:01:21]} 29... Kg7 {[%clk 0:01:44.5]} 30. Rc7 {[%clk 0:01:13.4]} 30...
Qf6 {[%clk 0:01:33.8]} 31. Rc5 {[%clk 0:00:58.1]} 31... h5 {[%clk 0:01:13.9]}
32. Kh3 {[%clk 0:00:51.9]} 32... Qe6+ {[%clk 0:01:07.1]} 33. Kh2 {[%clk
0:00:51.6]} 33... Re8 {[%clk 0:00:51.7]} 34. Rc7 {[%clk 0:00:47.1]} 34... Re7
{[%clk 0:00:49.3]} 35. Rc5 {[%clk 0:00:44.5]} 35... Rd7 {[%clk 0:00:45.7]} 36.
Rc8 {[%clk 0:00:41.2]} 36... Rd6 {[%clk 0:00:40.1]} 37. Rc5 {[%clk 0:00:34.7]}
37... Qf6 {[%clk 0:00:38.9]} 38. Ra5 {[%clk 0:00:33]} 38... Qd8 {[%clk
0:00:36.4]} 39. Qe5+ {[%clk 0:00:32.2]} 39... Qf6 {[%clk 0:00:23.8]} 40. Rxd5
{[%clk 0:00:30]} 40... Rxd5 {[%clk 0:00:24.2]} 41. Qxd5 {[%clk 0:00:30.2]} 41...
Qxf2 {[%clk 0:00:25.1]} 42. Qxc4 {[%clk 0:00:20.2]} 42... Qxb2 {[%clk
0:00:24.8]} 43. d5 {[%clk 0:00:20.8]} 43... Qc2 {[%clk 0:00:20.3]} 44. d6 {[%clk
0:00:21.2]} 44... b2 {[%clk 0:00:20.8]} 45. d7 {[%clk 0:00:21.4]} 45... Qd1
{[%clk 0:00:18.3]} 46. Qb4 {[%clk 0:00:18.7]} 46... b1=Q {[%clk 0:00:09.4]} 47.
Qxb1 {[%clk 0:00:16.5]} 47... Qxb1 {[%clk 0:00:10.3]} 48. d8=Q {[%clk
0:00:16.3]} 48... Qe4 {[%clk 0:00:10.9]} 49. Qd6 {[%clk 0:00:12.8]} 49... f6
{[%clk 0:00:10.6]} 50. Qd7+ {[%clk 0:00:12.2]} 50... Kh6 {[%clk 0:00:09.6]} 51.
Qc7 {[%clk 0:00:12.4]} 51... g5 {[%clk 0:00:09.1]} 52. c4 {[%clk 0:00:12.4]}
52... h4 {[%clk 0:00:09.1]} 53. gxh4 {[%clk 0:00:09.2]} 53... Qxh4+ {[%clk
0:00:10]} 54. Kg1 {[%clk 0:00:09.6]} 54... Qe1+ {[%clk 0:00:10.9]} 55. Kh2
{[%clk 0:00:09.9]} 55... Qh4+ {[%clk 0:00:10.7]} 56. Kg1 {[%clk 0:00:10.3]}
56... Qe1+ {[%clk 0:00:11.6]} 57. Kh2 {[%clk 0:00:10.9]} 57... Kg6 {[%clk
0:00:12.5]} 58. c5 {[%clk 0:00:10.8]} 58... Qh4+ {[%clk 0:00:12.1]} 59. Kg1
{[%clk 0:00:10.6]} 59... Qe1+ {[%clk 0:00:13]} 60. Kh2 {[%clk 0:00:11.3]} 60...
Qh4+ {[%clk 0:00:10.6]} 61. Kg1 {[%clk 0:00:11.4]} 61... Qe1+ {[%clk 0:00:11.5]}
62. Kh2 {[%clk 0:00:11.8]} 1/2-1/2

[Event "Early-Titled-Tuesday-Blitz-September-05-2023"]
[Site "Chess.com"]
[Date "2023.09.05"]
[Round "2"]
[White "malakismayil"]
[Black "milovichalex"]
[Result "1-0"]
[WhiteElo "2504"]
[BlackElo "2286"]
[TimeControl "180+1"]
[EndTime "8:18:30 PDT"]
[Termination "malakismayil won by checkmate"]

1. e4 {[%clk 0:03:00.9]} 1... e5 {[%clk 0:02:57.4]} 2. Nf3 {[%clk 0:03:01.1]}
2... Nc6 {[%clk 0:02:56.4]} 3. Bc4 {[%clk 0:03:01.6]} 3... Nf6 {[%clk 0:02:56]}
4. d3 {[%clk 0:03:00.9]} 4... Bc5 {[%clk 0:02:55.6]} 5. Nc3 {[%clk 0:03:00.1]}
5... a6 {[%clk 0:02:55.3]} 6. O-O {[%clk 0:03:00.3]} 6... d6 {[%clk 0:02:55.4]}
7. h3 {[%clk 0:03:00.2]} 7... h6 {[%clk 0:02:51.7]} 8. Be3 {[%clk 0:03:00.2]}
8... O-O {[%clk 0:02:48.7]} 9. Qd2 {[%clk 0:02:56.5]} 9... Nd4 {[%clk
0:02:45.8]} 10. Bxd4 {[%clk 0:02:43.8]} 10... exd4 {[%clk 0:02:44.7]} 11. Ne2
{[%clk 0:02:43.7]} 11... c6 {[%clk 0:02:41.8]} 12. Nexd4 {[%clk 0:02:35.7]}
12... d5 {[%clk 0:02:40.7]} 13. exd5 {[%clk 0:02:34.4]} 13... Nxd5 {[%clk
0:02:40.6]} 14. Ne2 {[%clk 0:02:31.7]} 14... Qf6 {[%clk 0:02:36.1]} 15. Bxd5
{[%clk 0:02:01.2]} 15... cxd5 {[%clk 0:02:21.2]} 16. Nf4 {[%clk 0:01:56.2]}
16... Rd8 {[%clk 0:02:15.5]} 17. d4 {[%clk 0:01:35.9]} 17... Ba7 {[%clk
0:02:05.3]} 18. c3 {[%clk 0:01:31.3]} 18... Bf5 {[%clk 0:02:04.7]} 19. Ne5
{[%clk 0:01:29.9]} 19... Rac8 {[%clk 0:02:00.4]} 20. Rae1 {[%clk 0:01:28.4]}
20... Bb8 {[%clk 0:01:58.7]} 21. Nfd3 {[%clk 0:01:27.4]} 21... Qd6 {[%clk
0:01:53.1]} 22. f4 {[%clk 0:01:26.5]} 22... Be4 {[%clk 0:01:52.3]} 23. Nf2
{[%clk 0:01:24.5]} 23... Bh7 {[%clk 0:01:49.6]} 24. Nfg4 {[%clk 0:01:13.7]}
24... f6 {[%clk 0:01:42.5]} 25. Nd3 {[%clk 0:01:11.9]} 25... h5 {[%clk 0:01:33]}
26. Ngf2 {[%clk 0:01:02.5]} 26... Re8 {[%clk 0:01:30.8]} 27. Rxe8+ {[%clk
0:01:01.8]} 27... Rxe8 {[%clk 0:01:30.5]} 28. Re1 {[%clk 0:01:02.6]} 28... Rxe1+
{[%clk 0:01:30.2]} 29. Qxe1 {[%clk 0:01:03.5]} 29... Kf7 {[%clk 0:01:27.3]} 30.
Qe2 {[%clk 0:01:02.8]} 30... Bg6 {[%clk 0:01:21]} 31. Qf3 {[%clk 0:00:57.8]}
31... Qe6 {[%clk 0:01:16.9]} 32. Nc5 {[%clk 0:00:46.5]} 32... Qe1+ {[%clk
0:01:15.9]} 33. Kh2 {[%clk 0:00:46.9]} 33... h4 {[%clk 0:01:14.7]} 34. Qxd5+
{[%clk 0:00:45.7]} 34... Kf8 {[%clk 0:01:13.7]} 35. Qd8+ {[%clk 0:00:33.8]}
35... Be8 {[%clk 0:01:11.4]} 36. Nd7+ {[%clk 0:00:28.6]} 36... Kf7 {[%clk
0:01:10.7]} 37. Nxb8 {[%clk 0:00:29.1]} 37... Qxf2 {[%clk 0:01:09.3]} 38. Qc7+
{[%clk 0:00:29.6]} 38... Kg8 {[%clk 0:01:08.9]} 39. f5 {[%clk 0:00:25.7]} 39...
Qxf5 {[%clk 0:01:05.8]} 40. c4 {[%clk 0:00:24.9]} 40... Qe4 {[%clk 0:00:57.9]}
41. d5 {[%clk 0:00:24.4]} 41... Bg6 {[%clk 0:00:54.2]} 42. Nd7 {[%clk
0:00:17.2]} 42... Qc2 {[%clk 0:00:52.7]} 43. Qc8+ {[%clk 0:00:10.1]} 43... Kh7
{[%clk 0:00:52]} 44. Nf8+ {[%clk 0:00:10.6]} 44... Kh6 {[%clk 0:00:52.1]} 45.
Nxg6 {[%clk 0:00:10.8]} 45... Kxg6 {[%clk 0:00:47.9]} 46. Qg4+ {[%clk
0:00:10.5]} 46... Kf7 {[%clk 0:00:48.3]} 47. Qxh4 {[%clk 0:00:10.6]} 47... Qxb2
{[%clk 0:00:46.5]} 48. Qe4 {[%clk 0:00:10.7]} 48... Qb6 {[%clk 0:00:39.3]} 49.
h4 {[%clk 0:00:08.4]} 49... Qc7+ {[%clk 0:00:36.3]} 50. Kh3 {[%clk 0:00:08.3]}
50... Qc8+ {[%clk 0:00:34.5]} 51. g4 {[%clk 0:00:08.6]} 51... Qd7 {[%clk
0:00:30.2]} 52. h5 {[%clk 0:00:07.5]} 52... Qa4 {[%clk 0:00:28]} 53. Qe6+ {[%clk
0:00:05.2]} 53... Kf8 {[%clk 0:00:27.7]} 54. d6 {[%clk 0:00:05.3]} 54... Qxa2
{[%clk 0:00:23.9]} 55. d7 {[%clk 0:00:02.9]} 55... Qd2 {[%clk 0:00:14.6]} 56.
Qe8# {[%clk 0:00:02.5]} 1-0

[Event "Early-Titled-Tuesday-Blitz-September-05-2023"]
[Site "Chess.com"]
[Date "2023.09.05"]
[Round "2"]
[White "Iball95"]
[Black "gau248"]
[Result "1-0"]
[WhiteElo "2816"]
[BlackElo "2558"]
[TimeControl "180+1"]
[EndTime "8:18:33 PDT"]
[Termination "Iball95 won by checkmate"]

1. e4 {[%clk 0:02:22.3]} 1... c5 {[%clk 0:02:59.6]} 2. Nc3 {[%clk 0:02:22.6]}
2... Nc6 {[%clk 0:02:56.9]} 3. Nf3 {[%clk 0:02:23.3]} 3... e6 {[%clk 0:02:46.6]}
4. d4 {[%clk 0:02:22.7]} 4... cxd4 {[%clk 0:02:46.8]} 5. Nxd4 {[%clk 0:02:23.6]}
5... Nf6 {[%clk 0:02:47.2]} 6. Bf4 {[%clk 0:02:22.5]} 6... d6 {[%clk 0:02:40.2]}
7. Nxc6 {[%clk 0:02:21.5]} 7... bxc6 {[%clk 0:02:39.7]} 8. e5 {[%clk 0:02:21.8]}
8... Nd5 {[%clk 0:02:39.7]} 9. Nxd5 {[%clk 0:02:21.3]} 9... cxd5 {[%clk
0:02:32.7]} 10. Bd3 {[%clk 0:02:21.6]} 10... Ba6 {[%clk 0:02:20.1]} 11. O-O
{[%clk 0:02:16.5]} 11... Bxd3 {[%clk 0:02:17.9]} 12. Qxd3 {[%clk 0:02:17.4]}
12... Be7 {[%clk 0:02:17.5]} 13. Qg3 {[%clk 0:01:54]} 13... dxe5 {[%clk
0:02:15.5]} 14. Bxe5 {[%clk 0:01:50.1]} 14... Bf6 {[%clk 0:02:15.1]} 15. Bd6
{[%clk 0:01:46.2]} 15... Qb6 {[%clk 0:01:52.5]} 16. c4 {[%clk 0:01:39.1]} 16...
dxc4 {[%clk 0:01:47.2]} 17. Rac1 {[%clk 0:01:24.6]} 17... Rc8 {[%clk 0:01:43.6]}
18. Rc2 {[%clk 0:01:11.2]} 18... Rc6 {[%clk 0:01:34.7]} 19. Ba3 {[%clk 0:01:11]}
19... Kd7 {[%clk 0:01:14.6]} 20. Rfc1 {[%clk 0:00:59.9]} 20... Rhc8 {[%clk
0:01:12]} 21. h3 {[%clk 0:00:49.1]} 21... Ke8 {[%clk 0:01:09]} 22. Qg4 {[%clk
0:00:43.6]} 22... Qb5 {[%clk 0:01:03.3]} 23. Qe4 {[%clk 0:00:39.4]} 23... g6
{[%clk 0:00:59.9]} 24. Qe3 {[%clk 0:00:36.5]} 24... a5 {[%clk 0:00:54.7]} 25.
Qh6 {[%clk 0:00:35.5]} 25... Be7 {[%clk 0:00:53.4]} 26. Bxe7 {[%clk 0:00:34.3]}
26... Kxe7 {[%clk 0:00:54.3]} 27. Qxh7 {[%clk 0:00:33.3]} 27... a4 {[%clk
0:00:47.5]} 28. Rd1 {[%clk 0:00:31.8]} 28... Qf5 {[%clk 0:00:42.8]} 29. Rcd2
{[%clk 0:00:29.7]} 29... R6c7 {[%clk 0:00:40.1]} 30. Qh4+ {[%clk 0:00:26.3]}
30... g5 {[%clk 0:00:39.5]} 31. Qd4 {[%clk 0:00:26.9]} 31... Qf6 {[%clk
0:00:31.3]} 32. Qd6+ {[%clk 0:00:26.3]} 32... Ke8 {[%clk 0:00:31.8]} 33. Qb4
{[%clk 0:00:26.2]} 33... a3 {[%clk 0:00:19.8]} 34. Qxa3 {[%clk 0:00:25.5]} 34...
c3 {[%clk 0:00:20]} 35. bxc3 {[%clk 0:00:24.3]} 35... Qxc3 {[%clk 0:00:20.3]}
36. Qd6 {[%clk 0:00:19.5]} 36... Qf6 {[%clk 0:00:19.4]} 37. a4 {[%clk
0:00:18.9]} 37... Qe7 {[%clk 0:00:19.7]} 38. Qd4 {[%clk 0:00:17.8]} 38... e5
{[%clk 0:00:17.5]} 39. Qg4 {[%clk 0:00:17.2]} 39... Rc1 {[%clk 0:00:16.5]} 40.
Kh2 {[%clk 0:00:15.3]} 40... e4 {[%clk 0:00:14.4]} 41. g3 {[%clk 0:00:12.2]}
41... Kf8 {[%clk 0:00:12.6]} 42. Qh5 {[%clk 0:00:09.6]} 42... Kg7 {[%clk
0:00:12.2]} 43. Rd7 {[%clk 0:00:09.7]} 43... Qf6 {[%clk 0:00:11]} 44. Qe2 {[%clk
0:00:10.3]} 44... R1c2 {[%clk 0:00:10]} 45. R1d2 {[%clk 0:00:09.4]} 45... Rxd2
{[%clk 0:00:10.2]} 46. Rxd2 {[%clk 0:00:10.3]} 46... Re8 {[%clk 0:00:07.9]} 47.
Qe3 {[%clk 0:00:09.9]} 47... Re5 {[%clk 0:00:07.6]} 48. Ra2 {[%clk 0:00:08.7]}
48... Rf5 {[%clk 0:00:07.8]} 49. a5 {[%clk 0:00:08]} 49... Qe6 {[%clk
0:00:07.8]} 50. Qc3+ {[%clk 0:00:05.6]} 50... Kg6 {[%clk 0:00:07.2]} 51. Qd2
{[%clk 0:00:05.6]} 51... Rf3 {[%clk 0:00:07.3]} 52. a6 {[%clk 0:00:05.6]} 52...
g4 {[%clk 0:00:07.1]} 53. h4 {[%clk 0:00:05.5]} 53... e3 {[%clk 0:00:06.8]} 54.
fxe3 {[%clk 0:00:06.4]} 54... Qe5 {[%clk 0:00:07.2]} 55. Qd3+ {[%clk 0:00:05.7]}
55... Kh5 {[%clk 0:00:06.6]} 56. Rg2 {[%clk 0:00:06.2]} 56... Rxe3 {[%clk
0:00:06.6]} 57. Qh7# {[%clk 0:00:06.4]} 1-0